Cogmind - Beta 15 @@@ ROGUE MODE // 2025.09.19 @ 14:39:54 Player: bluemonk Result: Destroyed by U6-YD8(j) with Overtuned Pulse Rifle Performance ------------- Evolutions (0) 0 Regions Visited (3) 600 Robots Destroyed (7) 35 Value Destroyed (287) 287 Prototype IDs (1) 20 Alien Tech Used (0) 0 Bonus (786) 786 TOTAL SCORE: 1728 Bonus ------- Registered with UFD 300 Met Optimus in HQ 500 Friendly Fire -14 Cogmind --------- Core Integrity 0/250 Matter 233/300 Energy 141/250 System Corruption 0% Temperature Danger (462) Movement Core (200) Ox3 Location -7/Scraptown Parts ------- > --- POWER (1) -------- Ion Engine > --- PROPULSION (2) --- (None) > --- UTILITY (2) ------ Small Storage Unit > --- WEAPON (2) ------- (None) > --- INVENTORY (8) ---- Improved Ion Engine Light Nuclear Core Light Treads Aluminum Leg Scrap Suit Improved Medium Armor Plating Peak State ------------ > --- POWER ------------ Improved Deuterium Engine > --- PROPULSION ------- Aluminum Leg Flexi-carbon Leg > --- UTILITY ---------- Small Storage Unit Weapon Cycler > --- WEAPON ----------- Assault Rifle Battle Rifle > --- INVENTORY -------- Ion Engine Improved Ion Engine Light Nuclear Core Light Treads Aluminum Leg Scrap Suit Improved Medium Armor Plating [Rating: 20] Favorites ----------- Power Ion Engine Engine Ion Engine Propulsion Aluminum Leg Leg Aluminum Leg Utility Small Storage Unit Device Weapon Cycler Storage Small Storage Unit Weapon Assault Rifle Ballistic Gun Assault Rifle Build | -11 -10 -10 -7 ------- Run | Yrd Mat Sub Scr Slots Evolved . | . . . . Power . | . . . . Propulsion . | . . . . Utility . | . . . . Weapon . | . . . . Parts Attached 14 | 6 . 2 6 Power 3 | 1 . . 2 Engine 3 | 1 . . 2 Core . | . . . . Reactor . | . . . . Propulsion 5 | 2 . . 3 Treads . | . . . . Leg 5 | 2 . . 3 Wheel . | . . . . Hover . | . . . . Flight . | . . . . Utility 3 | 1 . 1 1 Device 2 | . . 1 1 Storage 1 | 1 . . . Processor . | . . . . Hackware . | . . . . Protection . | . . . . Artifact . | . . . . Weapon 3 | 2 . 1 . Energy Gun . | . . . . Energy Cannon . | . . . . Ballistic Gun 3 | 2 . 1 . Ballistic Cannon . | . . . . Launcher . | . . . . Special Weapon . | . . . . Impact Weapon . | . . . . Slashing Weapon . | . . . . Piercing Weapon . | . . . . Special Melee Weapon . | . . . . Unidentified Prototypes . | . . . . Parts Lost 6 | . . . 6 Power 1 | . . . 1 Propulsion 2 | . . . 2 Utility 1 | . . . 1 Weapon 2 | . . . 2 Highest Loss Streak 6 | . . . 6 To Critical Strikes . | . . . . Average Backups 7 | 2 6 6 7 Power 1 | . 1 1 2 Propulsion 2 | 1 4 4 2 Utility 1 | . . . 1 Weapon 1 | . 1 1 1 Tool/Special . | . . . . Unused Backups 11 | . . . 11 Power 2 | . . . 2 Propulsion 5 | . . . 5 Utility 3 | . . . 3 Weapon 1 | . . . 1 Tool/Special . | . . . . Average Slot Usage (%) 76 | . 85 86 74 Engine 14 | . 14 14 14 Leg 27 | . 28 28 27 Device 11 | . . 1 13 Storage 14 | . 14 14 14 Ballistic Gun 8 | . 28 28 3 Peak Build Rating 20 | 6 6 10 20 Average Rating 10 | 4 6 6 12 On Entrance 5 | . 6 6 10 Naked Turns . | . . . . Heaviest Build 20 | 13 13 15 20 Greatest Support 38 | 20 20 20 38 Greatest Overweight (x) 3 | . . . 3 Average Overweight (x) . | . . . . Largest Inventory Capacity 8 | 8 8 8 8 Average Capacity 7 | 6 8 8 8 Most Carried 8 | 6 6 8 8 Average Carried 7 | 2 6 6 7 Final Capacity 8 | 8 8 8 8 Final Carried 8 | 6 6 8 7 Class Distribution -------------------- 100% | Mutant Dominant Class ---------------- Mutant | -10/Materials Mutant | -10/Subcaves Mutant | -7/Scraptown Resources | -11 -10 -10 -7 ----------- Run | Yrd Mat Sub Scr Matter Collected 478 | 175 . 121 182 Remotely . | . . . . Salvage Created 344 | . . 43 301 Parts 17 | . . 1 16 Haulers Intercepted . | . . . . Recyclers Shooed . | . . . . Parts Field Recycled . | . . . . Retrieved Matter . | . . . . Parts Self-Destructed . | . . . . Prevented . | . . . . Kills | -11 -10 -10 -7 ------- Run | Yrd Mat Sub Scr Combat Hostiles Destroyed 7 | . . 1 6 Guns 7 | . . 1 6 Classes Destroyed 5 | . . 1 4 Subdweller 1 | . . 1 . Federalist 2 | . . . 2 Explorer 1 | . . . 1 Ranger 1 | . . . 1 Scrapper 2 | . . . 2 Best Kill Streak 3 | . . 1 3 Combat Bots Only 3 | . . 1 3 Max Kills in Single Turn 2 | . . 1 2 Gunslinging 1 | . . . 1 Exploded . | . . . . Melee . | . . . . Uniques/NPCs Destroyed . | . . . . Combat | -11 -10 -10 -7 -------- Run | Yrd Mat Sub Scr Hostile Shots Fired 71 | . . 2 69 Missed 18 | . . . 18 Hits 53 | . . 2 51 Melee 2 | . . . 2 Projectile 51 | . . 2 49 Critical Strikes 4 | . . . 4 Damage Taken 993 | . . 60 933 Core 254 | . . 25 229 Absorbed by Shields . | . . . . Core Remaining (%) 100 | 100 . . . Volleys Fired 36 | . . 4 32 Largest 2 | . . 2 2 Hottest 45 | . . 40 45 Shots Fired 71 | . . 8 63 Gun 71 | . . 8 63 Cannon . | . . . . Launcher . | . . . . Special . | . . . . Kinetic 71 | . . 8 63 Thermal . | . . . . Explosive . | . . . . Electromagnetic . | . . . . Robot Hit Streak 8 | . . 7 8 Robot Miss Streak 4 | . . . 4 Penetration Max . | . . . . Secondary Targets 4 | . . . 4 Max Gunslinging Chain 1 | . . . 1 Shots Hit Robots 45 | . . 7 38 Core Hits 18 | . . 2 16 Critical Kills . | . . . . Critical Parts Destroyed . | . . . . Critical Strikes . | . . . . Melee Attacks . | . . . . Impact . | . . . . Slashing . | . . . . Piercing . | . . . . Sneak Attacks . | . . . . Combat Hostiles . | . . . . Follow-up Attacks . | . . . . Damage Inflicted 606 | . . 79 527 Guns 606 | . . 79 527 Cannons . | . . . . Explosions . | . . . . Melee . | . . . . Ramming . | . . . . Kinetic 606 | . . 79 527 Thermal . | . . . . Explosive . | . . . . Electromagnetic . | . . . . Impact . | . . . . Slashing . | . . . . Piercing . | . . . . Highest Corruption . | . . . . Average Corruption . | . . . . Corruption Purged . | . . . . Corruption Blocked . | . . . . Overload Shots . | . . . . Overflow Damage . | . . . . Projectiles . | . . . . Explosions . | . . . . Melee . | . . . . Knockbacks . | . . . . Impact . | . . . . Kinetic . | . . . . Secondary . | . . . . Self-Inflicted Damage . | . . . . Shots . | . . . . Rammed . | . . . . Targets Rammed . | . . . . Kicked . | . . . . Crushed . | . . . . Highest Temperature 454 | . . . 454 Average Temperature 103 | . . . 103 Received Heat Transfer 598 | . . 24 574 Effects 1 | . . . 1 Damage (major) 1 | . . . 1 Siege Activations . | . . . . Martial Activations . | . . . . Shielding Activations . | . . . . Robots Disrupted . | . . . . Combat Hostiles . | . . . . Robots Corrupted . | . . . . Combat Hostiles . | . . . . Parts Fried . | . . . . Impact Corruptions . | . . . . Robots Melted . | . . . . Combat Hostiles . | . . . . Parts Melted 1 | . . . 1 Heat Transferred . | . . . . Parts Sabotaged . | . . . . Parts Stolen . | . . . . Parts Stripped . | . . . . Power Chain Reactions . | . . . . Alert | -11 -10 -10 -7 ------- Run | Yrd Mat Sub Scr Maximum Alert Level . | . . . . Low Security (%) 100 | 100 100 . . Level 1 . | . . . . Level 2 . | . . . . Level 3 . | . . . . Level 4 . | . . . . Level 5 . | . . . . High Security . | . . . . Max Security . | . . . . Peak Influence . | . . . . Initial . | . . . . Average . | . . . . Influence Increases . | . . . . Influence Decreases . | . . . . Squads Dispatched . | . . . . Investigation . | . . . . Extermination . | . . . . Reinforcement . | . . . . Assault . | . . . . Garrison . | . . . . Intercept . | . . . . Searches Triggered . | . . . . Construction Impeded . | . . . . Haulers Reinforced . | . . . . Active Scanning Responses . | . . . . Cargo Convoy Interrupts . | . . . . Stealth | -11 -10 -10 -7 --------- Run | Yrd Mat Sub Scr Distress Signals . | . . . . Communications Jammed . | . . . . Distress Signals . | . . . . Times Spotted 25 | . . 2 23 Peak Tracking Total 6 | . . 2 6 Tactical Retreats . | . . . . Traps | -11 -10 -10 -7 ------- Run | Yrd Mat Sub Scr Traps Triggered . | . . . . Indirectly . | . . . . Trap Hack Attempts . | . . . . Triggered . | . . . . Disarmed . | . . . . Reprogrammed . | . . . . Reused . | . . . . Traps Extracted . | . . . . Installed . | . . . . Triggered . | . . . . Machines | -11 -10 -10 -7 ---------- Run | Yrd Mat Sub Scr Machines Disabled . | . . . . Max in Single Turn . | . . . . Machines Repaired . | . . . . Machines Dismantled . | . . . . Machines Sabotaged . | . . . . Overloaded Fab Kills . | . . . . Hacking | -11 -10 -10 -7 --------- Run | Yrd Mat Sub Scr Machines Accessed 5 | . . . 5 Terminals . | . . . . Fabricators . | . . . . Repair Stations . | . . . . Recycling Units . | . . . . Scanalyzers . | . . . . Garrison Access . | . . . . Total Hacks 32 | . . . 32 Successful 32 | . . . 32 Failed . | . . . . Catastrophic . | . . . . Database Lockouts . | . . . . Manual . | . . . . Terminals . | . . . . Fabricators . | . . . . Repair Stations . | . . . . Recycling Units . | . . . . Scanalyzers . | . . . . Garrison Access . | . . . . Terminal Hacks 32 | . . . 32 Record 32 | . . . 32 Fabricator Hacks . | . . . . Repair Station Hacks . | . . . . Recycling Unit Hacks . | . . . . Scanalyzer . | . . . . Garrison Access Hacks . | . . . . Unauthorized Hacks . | . . . . Terminals . | . . . . Fabricators . | . . . . Repair Stations . | . . . . Recycling Units . | . . . . Scanalyzers . | . . . . Garrison Access . | . . . . Data Cores Recovered . | . . . . Used . | . . . . Hacking Detections . | . . . . Full Trace Events . | . . . . Feedback Events . | . . . . Feedback Blocked . | . . . . Robot Schematics Acquired . | . . . . Robots Built . | . . . . Authchips . | . . . . Time . | . . . . Total Robot Build Rating . | . . . . Part Schematics Acquired . | . . . . Parts Built . | . . . . Authchips . | . . . . Time . | . . . . Total Part Build Rating . | . . . . Parts Repaired . | . . . . Time . | . . . . Parts Recycled . | . . . . Recycled Matter . | . . . . Retrieved Matter . | . . . . Retrieved Components . | . . . . Parts Scanalyzed . | . . . . Part Schematics Acquired . | . . . . Parts Damaged . | . . . . Bothacking | -11 -10 -10 -7 ------------ Run | Yrd Mat Sub Scr Used RIF Installer . | . . . . Robots Hacked . | . . . . Non-combat . | . . . . Combat . | . . . . Robot Hacks Applied . | . . . . Relay Couplers Released . | . . . . Fabnet Peak Effective % . | . . . . Robots Rewired . | . . . . Allies Hacked . | . . . . Hacks Repelled . | . . . . Allies | -11 -10 -10 -7 -------- Run | Yrd Mat Sub Scr Total Allies . | . . . . Largest Group . | . . . . Highest-Rated Group . | . . . . Highest-Rated Ally . | . . . . Total Orders . | . . . . Ally Attacks . | . . . . Total Damage . | . . . . Kills . | . . . . Allies Corrupted . | . . . . Allies Melted 5 | . . . 5 Intel | -11 -10 -10 -7 ------- Run | Yrd Mat Sub Scr Active Infowar (turns) . | . . . . Robot Analysis Total . | . . . . Derelict Logs Recovered . | . . . . Drone Launches . | . . . . Drone Recoveries . | . . . . Exploration | -11 -10 -10 -7 ------------- Run | Yrd Mat Sub Scr Turns Passed 1679 | 70 59 234 1316 Spaces Moved 1251 | 52 46 147 1006 Core 10 | 9 . . 1 Treads . | . . . . Legs 1241 | 43 46 147 1005 Wheels . | . . . . Hover . | . . . . Flight . | . . . . Fastest Speed 50 | 50 120 120 100 Average Speed 119 | 107 120 120 120 Slowest Speed 200 | 120 120 120 200 Overloaded Moves . | . . . . Propulsion Burnouts . | . . . . Robots Hopped . | . . . . Potential Cave-ins . | . . . . Cave-ins Triggered . | . . . . Exploration Rate (%) 27 | 5 14 14 75 Regions Visited 3 Branch Regions 2 Pre-discovered Areas . | . . . . Known Exits Taken . | . . . . Unknown Exits Taken 3 | 1 1 1 . Scrap Searched 3 | . . . 3 Spaces Dug . | . . . . Terrain Destroyed . | . . . . Melee . | . . . . Projectile . | . . . . AOE . | . . . . Terrain Rammed . | . . . . Walls Destroyed . | . . . . Machines Disabled . | . . . . Actions | -11 -10 -10 -7 --------- Run | Yrd Mat Sub Scr Total 1376 | 63 50 196 1067 Wait 50 | . 5 43 2 Move 1248 | 51 45 146 1006 Hop . | . . . . Pick Up 12 | 6 . 1 5 Fast Attach 10 | 6 . 1 3 Attach 3 | . . . 3 Detach 2 | . . . 2 Swap 4 | . . 1 3 Drop 11 | . . . 11 Fire 36 | . . 4 32 Melee . | . . . . Ram . | . . . . Kick . | . . . . Crush . | . . . . Escape Stasis . | . . . . Rewire . | . . . . Trap . | . . . . Miscellaneous . | . . . . Route ------- -11/Scrapyard -10/Materials -10/Subcaves -7/Scraptown (discovered 2 exits: Fac x2) History --------- Turn | Location | Event 9 | -11/Scrapyard | Discovered new exit (range 14) 71 | -11/Scrapyard | Entered Materials 72 | -10/Materials | Met a group of wandering Federalists 127 | -10/Materials | Discovered new exit (range 5) 130 | -10/Materials | Entered Subcaves 130 | -10/Subcaves | Accompanied by 2 allies 131 | -10/Subcaves | Continued accompanying wandering Federalists (4) 300 | -10/Subcaves | Build established: Mutant 328 | -10/Subcaves | Ambushed by Subdwellers from Twisted Machinery 357 | -10/Subcaves | Wandering Federalist uncovered a shortcut to Scraptown 364 | -10/Subcaves | Entered Scraptown 704 | -7/Scraptown | Visited Red Mages 757 | -7/Scraptown | Visited The Evicted 786 | -7/Scraptown | Visited Spacefarers 854 | -7/Scraptown | Received an X-ray algorithm 865 | -7/Scraptown | Visited Symbiants 1022 | -7/Scraptown | Visited UFD Registry 1065 | -7/Scraptown | Registered with UFD as "Boltskull" 1095 | -7/Scraptown | Visited Abandonware Association 1115 | -7/Scraptown | Learned abandonware demo "KABOOM.EXE" 1143 | -7/Scraptown | Visited Observation Area 1190 | -7/Scraptown | Visited Curators Association 1429 | -7/Scraptown | Visited Science Guys 1466 | -7/Scraptown | Met Optimus 1466 | -7/Scraptown | Accepted into 0bPrime 1518 | -7/Scraptown | Civil war broke out across Scraptown 1534 | -7/Scraptown | Found Scrap Suit 1594 | -7/Scraptown | Identified exit to Factory 1669 | -7/Scraptown | Core integrity fell below 50% 1678 | -7/Scraptown | Core integrity fell below 20% 1680 | -7/Scraptown | Destroyed by U6-YD8(j) with Overtuned Pulse Rifle Last Messages --------------- fight for!" 68-IKA(x) destroyed. Critical hit (Burn: +50). Destroyed Lgt. Ion Engine. Critical hit (Burn: +50). 7P-GGI(x) destroyed. Switching to secondary target: OD-TKF(j). 43-JZ5(g) destroyed. Mak. Salvage Targeting Computer melted. WL-RI3(j) destroyed. Switching to secondary target: GK-SU3(j). Critical hit (Burn: +50). Imp. Deuterium Engine destroyed. Critical hit (Burn: +50). Ovr. Titanium Leg destroyed. Assault Rifle destroyed. Overheating: Ovr. Titanium Leg damaged (-2). Battle Rifle destroyed. Ovr. Titanium Leg destroyed. Weapon Cycler destroyed. Map ----- +----------------------------------------------------+ | ?????????????????????????????????????????????????? | | ?????????????????????????????????????????????????? | | ?????????????????????????????????????????????????? | | ?????????????????????????????????????????????????? | | ?????????????????????????????????????????????????? | | ?????????????????????????????????????????????????? | | ?????????????????????????????????????????????????? | | ?????????????????????????????????????????????????? | | ?????????????????????????????????????????????????? | | ?????????????????????????????????????????????????? | | ?????????????????????????????????????????????????? | | ?????????????????????????????????????????????????? | | ?????????????????????????????????????????????????? | | ???????????????????????####??????????????????????? | | ??????????????????????##%*##??????